Cogmind - Beta 17.1 @@@ ROGUE MODE // 2026.08.18 @ 14:24:56 Player: JuustuToug Result: Destroyed by P-60 Hacker with Shock Rifle Performance ------------- Evolutions (0) 0 Regions Visited (3) 600 Robots Destroyed (38) 190 Value Destroyed (891) 891 Prototype IDs (23) 460 Alien Tech Used (0) 0 Bonus (566) 566 TOTAL SCORE: 2707 Bonus ------- Follower Combat Kills 266 Aligned with FarCom 300 Cogmind --------- Core Integrity 0/250 Matter 100/300 Energy 216/250 System Corruption 7% Temperature Cool (0) Movement Walking (190) Ox1 Location -10/Exiles Parts ------- > --- POWER (1) -------- Ion Engine > --- PROPULSION (2) --- Aluminum Leg Aluminum Leg > --- UTILITY (2) ------ Heat Sink Large Storage Unit > --- WEAPON (2) ------- Makeshift Hammer (fused) > --- INVENTORY (15) --- Ion Engine Large Matter Pod (150) Seismic Detector Light Assault Rifle Light Assault Rifle Peak State ------------ > --- POWER ------------ Ion Engine > --- PROPULSION ------- Light Treads Light Treads > --- UTILITY ---------- Large Storage Unit Seismic Detector > --- WEAPON ----------- Assault Rifle Assault Rifle > --- INVENTORY -------- Ion Engine Light Treads Light Treads Aluminum Leg Aluminum Leg Heat Sink Large Matter Pod Seismic Detector Light Assault Rifle Light Assault Rifle Light Assault Rifle Grenade Launcher Makeshift Hammer Deploy-a-Sentry Deploy-a-Sentry [Rating: 10] Favorites ----------- Power Ion Engine Engine Ion Engine Propulsion Light Treads Treads Light Treads Leg Aluminum Leg Utility Large Storage Unit Device Seismic Detector Storage Large Storage Unit Weapon Assault Rifle Ballistic Gun Assault Rifle Launcher Grenade Launcher Special Weapon Mining Laser Impact Weapon Makeshift Hammer Build | -11 -10 -10 -10 ------- Run | Yrd Mat Min Exi Slots Evolved . | . . . . Power . | . . . . Propulsion . | . . . . Utility . | . . . . Weapon . | . . . . Parts Attached 22 | 7 5 1 9 Power 3 | 1 2 . . Engine 3 | 1 2 . . Core . | . . . . Reactor . | . . . . Propulsion 8 | 2 . . 6 Treads 6 | 2 . . 4 Leg 2 | . . . 2 Wheel . | . . . . Hover . | . . . . Flight . | . . . . Utility 5 | 2 2 . 1 Device 2 | 1 . . 1 Storage 3 | 1 2 . . Processor . | . . . . Hackware . | . . . . Protection . | . . . . Artifact . | . . . . Weapon 6 | 2 1 1 2 Energy Gun . | . . . . Energy Cannon . | . . . . Ballistic Gun 3 | 2 . . 1 Ballistic Cannon . | . . . . Launcher 1 | . . 1 . Special Weapon 1 | . 1 . . Impact Weapon 1 | . . . 1 Slashing Weapon . | . . . . Piercing Weapon . | . . . . Special Melee Weapon . | . . . . Unidentified Prototypes . | . . . . Parts Lost 9 | . . . 9 Power . | . . . . Propulsion 4 | . . . 4 Utility 1 | . . . 1 Weapon 4 | . . . 4 Highest Loss Streak 4 | . . . 4 To Critical Strikes . | . . . . Average Backups 10 | 2 10 15 9 Power 1 | . 1 1 1 Propulsion 3 | 1 4 6 2 Utility 2 | . 1 2 2 Weapon 3 | . 4 5 3 Tool/Special . | . . . . Unused Backups 15 | . 8 2 5 Power 2 | . 1 . 1 Propulsion 4 | . 3 1 . Utility 3 | . 1 . 2 Weapon 6 | . 3 1 2 Tool/Special . | . . . . Average Slot Usage (%) 98 | . 99 100 97 Engine 13 | . 13 14 14 Treads 23 | . 27 28 18 Leg 4 | . . . 9 Device 13 | . 13 14 14 Storage 14 | . 14 14 14 Ballistic Gun 22 | . 27 27 17 Impact Weapon 4 | . . . 8 Peak Build Rating 10 | 7 8 8 10 Average Rating 8 | 5 7 8 9 On Entrance 5 | . 7 8 8 Avg Prop Armor Cover (%) . | . . . . Naked Turns . | . . . . Heaviest Build 31 | 15 30 31 31 Greatest Support 40 | 40 40 40 40 Greatest Overweight (x) 1 | . 1 . 1 Average Overweight (x) . | . . . . Largest Inventory Capacity 15 | 8 15 15 15 Average Capacity 13 | 7 11 15 15 Most Carried 15 | 5 15 15 15 Average Carried 10 | 3 10 15 9 Final Capacity 15 | 8 15 15 15 Final Carried 15 | 5 15 15 5 Class Distribution -------------------- 90% | Mutant 9% | Scavenger-Mutant Dominant Class ---------------- Mutant | -10/Materials Mutant | -10/Mines Mutant | -10/Exiles Resources | -11 -10 -10 -10 ----------- Run | Yrd Mat Min Exi Matter Collected 943 | 252 438 233 20 Remotely . | . . . . Salvage Created 1084 | 103 583 169 229 Parts 72 | 12 43 10 7 Haulers Intercepted 2 | . 2 . . Recyclers Shooed 1 | 1 . . . Parts Field Recycled . | . . . . Retrieved Matter . | . . . . Parts Self-Destructed . | . . . . Prevented . | . . . . Parts Restored . | . . . . Kills | -11 -10 -10 -10 ------- Run | Yrd Mat Min Exi Combat Hostiles Destroyed 24 | . 12 3 9 Melee 3 | . . . 3 Guns 13 | . 12 1 . AOE 6 | . . 2 4 Classes Destroyed 10 | 2 5 . 3 Builder 1 | . 1 . . Tunneler 4 | 3 1 . . Hauler 2 | . 2 . . Recycler 2 | 1 1 . . Watcher 3 | . 3 . . Swarmer 6 | . 6 . . Grunt 15 | . 6 5 4 Brawler 1 | . . . 1 Hunter 2 | . . . 2 Programmer 2 | . . . 2 Best Kill Streak 4 | 4 3 2 4 Combat Bots Only 4 | . 3 2 4 Max Kills in Single Turn 2 | 2 1 2 1 Gunslinging . | . . . . Exploded 2 | . . 2 1 Melee 1 | . . . 1 Uniques/NPCs Destroyed . | . . . . Combat | -11 -10 -10 -10 -------- Run | Yrd Mat Min Exi Hostile Shots Fired 149 | . 43 12 94 Missed 34 | . 8 6 20 Hits 115 | . 35 6 74 Projectile 115 | . 35 6 74 Critical Strikes 7 | . . . 7 Part Disruptions 1 | . . . 1 Damage Taken 1498 | . 349 109 1040 Core 258 | . 55 11 192 Absorbed by Shields . | . . . . Core Remaining (%) 100 | 100 . . . Volleys Fired 76 | 9 47 5 15 Largest 2 | 2 2 2 1 Hottest 100 | 40 100 40 30 Shots Fired 133 | 17 93 7 16 Gun 119 | 17 92 4 6 Cannon . | . . . . Launcher 13 | . . 3 10 Special 1 | . 1 . . Kinetic 119 | 17 92 4 6 Thermal 1 | . 1 . . Explosive 13 | . . 3 10 Electromagnetic . | . . . . Robot Hit Streak 12 | 10 12 2 . Robot Miss Streak 2 | 2 2 1 1 Penetration Max . | . . . . Secondary Targets 1 | . 1 . . Max Gunslinging Chain 1 | . 1 . . Shots Hit Robots 91 | 12 60 2 17 Core Hits 64 | 5 28 12 19 Critical Kills . | . . . . Critical Parts Destroyed 2 | . . . 2 Critical Strikes 2 | . . . 2 Smash 2 | . . . 2 Melee Attacks 47 | . . . 47 Impact 47 | . . . 47 Slashing . | . . . . Piercing . | . . . . Sneak Attacks . | . . . . Combat Hostiles . | . . . . Follow-up Attacks . | . . . . Damage Inflicted 2309 | 138 779 289 1103 Guns 918 | 138 752 28 . Cannons . | . . . . Explosions 571 | . . 222 349 Melee 754 | . . . 754 Ramming 66 | . 27 39 . Kinetic 918 | 138 752 28 . Thermal . | . . . . Explosive 571 | . . 222 349 Electromagnetic . | . . . . Impact 754 | . . . 754 Slashing . | . . . . Piercing . | . . . . Highest Corruption 7 | . . . 7 Average Corruption 3 | . . . 3 Corruption Purged . | . . . . Corruption Blocked . | . . . . Effects 34 | . . . 34 Message Errors 8 | . . . 8 Matter Fused 9 | . . . 9 Heat Flow Errors 5 | . . . 5 Energy Discharges 3 | . . . 3 Parts Fused 1 | . . . 1 Data Loss (minor) 3 | . . . 3 Data Loss (major) 3 | . . . 3 Misfires 1 | . . . 1 Alerts 1 | . . . 1 Overload Shots . | . . . . Overflow Damage 159 | . . . 159 Projectiles . | . . . . Explosions 8 | . . . 8 Melee 151 | . . . 151 Knockbacks . | . . . . Impact . | . . . . Kinetic . | . . . . Secondary . | . . . . Self-Inflicted Damage 39 | . . 39 . Shots 1 | . . 1 . Rammed 13 | . 5 8 . Targets Rammed 14 | . 6 8 . Kicked . | . . . . Crushed 1 | . 1 . . Highest Temperature 206 | . 20 10 206 Average Temperature 61 | . 9 7 77 Received Heat Transfer 249 | . 114 39 96 Siege Activations . | . . . . Martial Activations . | . . . . Shielding Activations . | . . . . Robots Disrupted . | . . . . Combat Hostiles . | . . . . Robots Corrupted 2 | . . . 2 Combat Hostiles 2 | . . . 2 Parts Fried 1 | . . . 1 Impact Corruptions 9 | . . . 9 Robots Melted . | . . . . Combat Hostiles . | . . . . Parts Melted . | . . . . Heat Transferred . | . . . . Parts Sabotaged . | . . . . Parts Stolen . | . . . . Parts Stripped . | . . . . Power Chain Reactions . | . . . . Alert | -11 -10 -10 -10 ------- Run | Yrd Mat Min Exi Maximum Alert Level . | . . . . Low Security (%) 100 | 100 100 100 . Level 1 . | . . . . Level 2 . | . . . . Level 3 . | . . . . Level 4 . | . . . . Level 5 . | . . . . High Security . | . . . . Max Security . | . . . . Peak Influence 135 | 10 135 66 . Initial 51 | . . 51 . Average 33 | 2 50 13 . Influence Increases 1173 | 20 496 124 533 Destroy 0b10 Robot/C 820 | . 240 80 500 Destroy 0b10 Robot/NC 60 | 20 40 . . Destroy Leader 80 | . 60 20 . Allied During Kill 44 | . . 11 33 Successful Hack 17 | . 17 . . Select Force Hacks 60 | . 60 . . Destroy Structure 17 | . 4 13 . Lose Combat Pursuer 75 | . 75 . . Influence Decreases 1128 | 20 365 255 488 Entered New Map 80 | . . 80 . Time Decay 908 | 20 365 175 348 Lost Part 80 | . . . 80 Lost Ally 60 | . . . 60 Squads Dispatched 4 | . 4 . . Investigation 3 | . 3 . . Extermination . | . . . . Reinforcement 1 | . 1 . . Assault . | . . . . Garrison . | . . . . Intercept . | . . . . Searches Triggered . | . . . . Construction Impeded . | . . . . Haulers Reinforced . | . . . . Active Scanning Responses . | . . . . Cargo Convoy Interrupts . | . . . . Stealth | -11 -10 -10 -10 --------- Run | Yrd Mat Min Exi Distress Signals 3 | . 3 . . Communications Jammed . | . . . . Distress Signals . | . . . . Times Spotted 46 | . 24 3 19 Peak Tracking Total 4 | . 4 2 4 Tactical Retreats 3 | . 3 . . Traps | -11 -10 -10 -10 ------- Run | Yrd Mat Min Exi Traps Triggered 4 | . 4 . . Indirectly . | . . . . Trap Hack Attempts . | . . . . Triggered . | . . . . Disarmed . | . . . . Reprogrammed . | . . . . Reused . | . . . . Traps Extracted . | . . . . Installed . | . . . . Triggered . | . . . . Machines | -11 -10 -10 -10 ---------- Run | Yrd Mat Min Exi Machines Disabled 5 | . . . 5 Max in Single Turn 2 | . . . 2 Machines Repaired . | . . . . Machines Dismantled . | . . . . Machines Sabotaged . | . . . . Overloaded Fab Kills . | . . . . Hacking | -11 -10 -10 -10 --------- Run | Yrd Mat Min Exi Machines Accessed 11 | . 9 . 2 Terminals 7 | . 7 . . Fabricators . | . . . . Repair Stations . | . . . . Recycling Units 2 | . 2 . . Scanalyzers . | . . . . Garrison Access . | . . . . Total Hacks 19 | . 16 . 3 Successful 12 | . 9 . 3 Failed 7 | . 7 . . Catastrophic . | . . . . Database Lockouts . | . . . . Manual 16 | . 15 . 1 Terminals 14 | . 14 . . Fabricators . | . . . . Repair Stations . | . . . . Recycling Units 2 | . 2 . . Scanalyzers . | . . . . Garrison Access . | . . . . Terminal Hacks 4 | . 1 . 3 Record 2 | . . . 2 Terminal Index 1 | . 1 . . Proto ID Catalog 1 | . . . 1 Fabricator Hacks . | . . . . Repair Station Hacks . | . . . . Recycling Unit Hacks . | . . . . Scanalyzer . | . . . . Garrison Access Hacks . | . . . . Unauthorized Hacks 8 | . 8 . . Terminals 6 | . 6 . . Botnet 2 | . 2 . . Skim 4 | . 4 . . Fabricators . | . . . . Repair Stations . | . . . . Recycling Units 2 | . 2 . . Tunnel 2 | . 2 . . Scanalyzers . | . . . . Garrison Access . | . . . . Data Cores Recovered . | . . . . Used . | . . . . Hacking Detections 6 | . 6 . . Full Trace Events . | . . . . Feedback Events . | . . . . Feedback Blocked . | . . . . Robot Schematics Acquired . | . . . . Robots Built . | . . . . Authchips . | . . . . Time . | . . . . Total Robot Build Rating . | . . . . Part Schematics Acquired . | . . . . Parts Built . | . . . . Authchips . | . . . . Time . | . . . . Total Part Build Rating . | . . . . Part Studies Acquired . | . . . . Parts Repaired . | . . . . Time . | . . . . Parts Recycled . | . . . . Recycled Matter . | . . . . Retrieved Matter . | . . . . Retrieved Components . | . . . . Parts Scanalyzed . | . . . . Part Schematics Acquired . | . . . . Parts Damaged . | . . . . Bothacking | -11 -10 -10 -10 ------------ Run | Yrd Mat Min Exi Used RIF Installer . | . . . . Robots Hacked . | . . . . Non-combat . | . . . . Combat . | . . . . Robot Hacks Applied . | . . . . Relay Couplers Released . | . . . . Fabnet Peak Effective % . | . . . . Robots Rewired . | . . . . Allies Hacked . | . . . . Hacks Repelled . | . . . . Allies | -11 -10 -10 -10 -------- Run | Yrd Mat Min Exi Total Allies 4 | . . 4 . Largest Group 4 | . . 4 1 Highest-Rated Group 71 | . . 71 16 Highest-Rated Ally 31 | . . 31 16 Total Orders . | . . . . Ally Attacks 52 | . . 11 41 Total Damage 1660 | . . 124 1536 Kills 17 | . . 1 16 Allies Corrupted 1 | . . . 1 Allies Melted . | . . . . Turrets Deployed 2 | . . . 2 Intel | -11 -10 -10 -10 ------- Run | Yrd Mat Min Exi Active Infowar (turns) 4254 | 22 1567 1137 1528 Seismic 4254 | 22 1567 1137 1528 Robot Analysis Total . | . . . . Derelict Logs Recovered 3 | . . 3 . Drone Launches . | . . . . Drone Recoveries . | . . . . Exploration | -11 -10 -10 -10 ------------- Run | Yrd Mat Min Exi Turns Passed 5218 | 113 1575 1137 2393 Spaces Moved 2183 | 49 829 677 628 Core 6 | 6 . . . Treads 2170 | 43 829 677 621 Legs 7 | . . . 7 Wheels . | . . . . Hover . | . . . . Flight . | . . . . Fastest Speed 50 | 50 160 160 160 Average Speed 159 | 146 160 160 160 Slowest Speed 240 | 160 240 160 190 Overloaded Moves . | . . . . Propulsion Burnouts . | . . . . Robots Hopped . | . . . . Potential Cave-ins . | . . . . Cave-ins Triggered . | . . . . Exploration Rate (%) 71 | 3 93 99 89 Regions Visited 3 Branch Regions 2 Pre-discovered Areas 5 | . 2 2 1 Known Exits Taken . | . . . . Unknown Exits Taken 3 | 1 1 1 . Scrap Searched 1 | . . 1 . Spaces Dug 1 | . 1 . . Terrain Destroyed 56 | . 1 13 42 Melee . | . . . . Projectile 1 | . 1 . . AOE 55 | . . 13 42 Terrain Rammed . | . . . . Walls Destroyed . | . . . . Machines Disabled . | . . . . Actions | -11 -10 -10 -10 --------- Run | Yrd Mat Min Exi Total 3725 | 70 980 720 1955 Wait 1323 | 1 48 25 1249 Move 2180 | 48 828 676 628 Hop . | . . . . Pick Up 31 | 5 22 2 2 Fast Attach 14 | 7 7 . . Attach 10 | . . . 10 Detach . | . . . . Swap 8 | . 6 2 . Drop 22 | . 16 2 4 Fire 76 | 9 47 5 15 Melee 47 | . . . 47 Ram . | . . . . Kick . | . . . . Crush 14 | . 6 8 . Escape Stasis . | . . . . Rewire . | . . . . Trap . | . . . . Miscellaneous . | . . . . Route ------- -11/Scrapyard -10/Materials (discovered 6 exits: [*Mat x3] / [*Min x2] / [*Sub]) -10/Mines (discovered 4 exits: [*Mat x2] / *Exi / [*Sub]) -10/Exiles (discovered 1 exit: [*Min]) History --------- Turn | Location | Event 3 | -11/Scrapyard | Discovered new exit (range 15) 114 | -11/Scrapyard | Entered Materials 305 | -10/Materials | Build established: Mutant 418 | -10/Materials | Discovered new exit (range 7) 482 | -10/Materials | Discovered new exit (range 12) 767 | -10/Materials | Discovered new exit (range 8) 1391 | -10/Materials | Discovered new exit (range 8) 1550 | -10/Materials | Discovered new exit (range 7) 1664 | -10/Materials | Discovered new exit (range 16) 1689 | -10/Materials | Entered Mines 1968 | -10/Mines | Discovered new exit (range 12) 2003 | -10/Mines | Assisted by bots powering up and referring to "LRC-V3" 2051 | -10/Mines | Learned location of Storage (-7) 2167 | -10/Mines | Deemed a non-threat by the Exiles lab entrance 2167 | -10/Mines | Discovered new exit (range 5) 2230 | -10/Mines | Received a Mining Laser from a helpful Derelict 2260 | -10/Mines | Discovered new exit (range 9) 2321 | -10/Mines | A weapon hastily lodged in a ceiling crevice suddenly fell to the ground 2544 | -10/Mines | Discovered new exit (range 9) 2826 | -10/Mines | Entered Exiles 2826 | -10/Exiles | Accompanied by 1 ally 2870 | -10/Exiles | Met 8R-AWN 2897 | -10/Exiles | Met EX-HEX 2969 | -10/Exiles | Met EX-DEC 2999 | -10/Exiles | Visited The Gauntlet 3114 | -10/Exiles | Learned location of Zion (-6) 3223 | -10/Exiles | Met EX-BIN 3246 | -10/Exiles | Aligned with FarCom system 3247 | -10/Exiles | Given EX-Vault access code 3284 | -10/Exiles | Opened EX-Vault 3335 | -10/Exiles | Warned to stay clear of 0b10 Research branches 3349 | -10/Exiles | Exiles lab attacked by MAIN.C 3441 | -10/Exiles | Found Deploy-a-Sentry 3443 | -10/Exiles | Found Deploy-a-Sentry 3497 | -10/Exiles | DAS Turret deployed 3578 | -10/Exiles | Discovered new exit (range 14) 3705 | -10/Exiles | Core integrity fell below 50% 3707 | -10/Exiles | DAS Turret deployed 3738 | -10/Exiles | Lost 4 parts (2n2w) 4165 | -10/Exiles | Build established: Scavenger-Mutant 4416 | -10/Exiles | Core integrity fell below 20% 4637 | -10/Exiles | Build established: Mutant 5219 | -10/Exiles | Destroyed by P-60 Hacker with Shock Rifle Last Messages --------------- 04674_ System corrupted: Heat flow error (+131). 04689_ System corrupted: Substantial component data lost. 04708_ System corrupted: Matter fused (-5). 04749_ System corrupted: Matter fused (-6). 04777_ BZL MOSPNP /BOZMHHO,,5|#P8 04832_ YY%LE=L&BNPR73XOR=PEREIUQ ITG 04862_ System corrupted: Heat flow error (+236). 04882_ System corrupted: Component data lost. 04897_ System corrupted: Heat flow error (+169). 04959_ System corrupted: Heat flow error (+102). 04995_ System corrupted: Heat flow error (+182). 05040_ System corrupted: Component data lost. 05066_ System corrupted: Matter fused (-5). 05083_ JO|69A%J 05142_ TNA,7H